[Event "MPL-4 Indian Chess Tour 2022"]
[Site "Chess24"]
[Date "2022.09.27"]
[Round "10.7"]
[White "Aditya Mittal"]
[Black "Vaibhav, Suri"]
[Result "1-0"]
[ECO "E18"]
[WhiteElo "2485"]
[BlackElo "2600"]
[Annotator "TA"]
[PlyCount "95"]
[EventDate "2022.09.29"]
[EventType "tourn (rapid)"]
[EventCountry "NET"]
[SourceTitle "playchess.com"]
[Source "ChessBase"]
[SourceQuality "1"]
[WhiteTeam "India"]
[BlackTeam "India"]
[WhiteTeamCountry "IND"]
[BlackTeamCountry "IND"]
[TimeControl "900+10"]

{[%evp 19,95,14,28,14,43,47,39,50,46,56,66,71,74,66,76,67,63,69,57,56,71,66,86,51,63,73,66,75,62,33,35,0,0,0,48,52,29,0,0,0,0,-15,0,0,0,0,0,0,0,0,0,0,0,0,0,0,0,0,0,0,0,0,0,0,0,0,29978,29979,29978,29978,29980,29980,29980,29981,29981,29982,29993,29994]} 1. Nf3 {[%emt 0:00:00]} d5 {[%emt 0:00:00]} 2. g3 {[%emt 0:00:05]} Nf6 {[%emt 0:00:14]} 3. Bg2 {[%emt 0:00:03]} e6 {[%emt 0:00:00]} 4. O-O {[%emt 0:00:02]} b6 {[%emt 0:00:01]} 5. c4 {[%emt 0:00:06]} Bb7 {[%emt 0:00:01]} 6. cxd5 {[%emt 0:00:01]} exd5 {[%emt 0:00:00]} 7. Nc3 {[%emt 0:00:01]} Be7 {[%emt 0:00:03]} 8. d4 {[%emt 0:00:01]} O-O {[%emt 0:00:01]} 9. Bf4 {[%emt 0:00:01]} Na6 {[%emt 0:00:01]} 10. Ne5 {[%emt 0:01:24]} c5 {[%emt 0:00:03]} 11. Qa4 {[%emt 0:00:56] E18: Queen's Indian: Old Main Line (4 g3 Bb7 5 Bg2 Be7 6 0-0 0-0 7 Nc3).} Qe8 {[%emt 0:00:25]} 12. Qxe8 {[%emt 0:01:07]} Rfxe8 {[%emt 0:00:02]} 13. Nb5 {[%emt 0:00:23] White is slightly better.} Ne4 {[%emt 0:01:38]} 14. dxc5 {[%emt 0:01:35] [#]} Bxc5 $146 {[%emt 0:03:17] Hoping for ...g5.} ({Predecessor:} 14... Nexc5 15. Nf3 Bf6 16. Nfd4 Rad8 17. Be3 Ne6 18. Rfd1 Nxd4 19. Nxd4 Nc5 20. Rac1 Ne6 {½-½ (40) Pesotskiy,M (2205)-Palchun,G (2394) St Petersburg 2018}) 15. Nd3 {[%emt 0:00:28]} Bc6 {[%emt 0:03:20] [#]} 16. a4 {[%emt 0:00:28]} Re7 {[%emt 0:00:03]} 17. Rac1 {[%emt 0:02:24]} (17. Rfc1 $5 {[%cal Rb2b4]}) 17... Rd8 {[%emt 0:01:06]} 18. Rfd1 {[%emt 0:01:41]} h6 {[%emt 0:01:05]} 19. h4 {[%emt 0:02:03]} Be8 {[%emt 0:02:58]} 20. e3 {[%emt 0:00:35]} f6 {[%emt 0:00:20]} 21. f3 {[%emt 0:02:06]} g5 {[%emt 0:01:14]} 22. fxe4 {[%emt 0:00:45]} ({Of course not} 22. Nxc5 Nexc5 23. Bd6 Rxe3 24. Rxd5 Nd3 $15) 22... gxf4 {[%emt 0:00:01]} 23. Nxc5 {[%emt 0:00:00]} Nxc5 {[%emt 0:00:01]} 24. exf4 {[%emt 0:00:35]} (24. Nc3 $5 {[%cal Rc3d5]}) 24... Nxe4 {[%emt 0:01:35]} 25. Rc7 {[%emt 0:00:31]} Rxc7 {[%emt 0:00:21]} 26. Nxc7 {[%emt 0:00:00] And now Bxe4 would win.} Nxg3 {[%emt 0:00:27]} (26... Bxa4 $11 {might be stronger.} 27. Rd4 Bc2) 27. Kf2 {[%emt 0:01:17]} ({Don't play} 27. Nxd5 Kf8 28. Bf3 Bxa4 $15) 27... Nf5 $1 {[%emt 0:00:05]} 28. Nxe8 {[%emt 0:00:38]} ({But not} 28. Nxd5 Kf8 $15) 28... Rxe8 {[%emt 0:00:01]} 29. Rxd5 {[%emt 0:00:09]} Nxh4 $11 {[%emt 0:00:48][%mdl 4096] Endgame KRB-KRN} 30. Bf1 {[%emt 0:00:14]} Ng6 {[%emt 0:00:03]} 31. Kf3 {[%emt 0:00:07]} Re7 {[%emt 0:00:13]} 32. Bd3 {[%emt 0:00:05]} Kg7 {[%emt 0:00:13]} 33. Kg4 {[%emt 0:00:16]} Rc7 {[%emt 0:00:10]} 34. Bxg6 {[%emt 0:00:22]} Kxg6 {[%emt 0:00:03] KR-KR} 35. f5+ {[%emt 0:00:01]} Kh7 {[%emt 0:00:38]} 36. Rd6 {[%emt 0:00:01]} Kg7 {[%emt 0:00:22]} 37. Kh5 {[%emt 0:00:02]} Rb7 {[%emt 0:00:05]} 38. b4 {[%emt 0:00:04][%cal Bb2b4,Bb4a5,Ba5a6][%mdl 32]} Rc7 {[%emt 0:00:02]} 39. a5 {[%emt 0:00:13]} bxa5 {[%emt 0:00:13]} 40. bxa5 {[%emt 0:00:00]} Rb7 {[%emt 0:00:13]} 41. a6 {[%emt 0:00:15]} Rc7 {[%emt 0:00:03]} 42. Rd8 {[%emt 0:00:05]} Rc6 $2 {[%emt 0:00:23][%mdl 8192] [#]} (42... Kh7 $11) 43. Rd7+ {[%emt 0:00:03] White mates.} Kf8 {[%emt 0:00:01]} 44. Rxa7 {[%emt 0:00:04]} Rb6 {[%emt 0:00:09]} 45. Kxh6 {[%emt 0:00:07]} Rc6 {[%emt 0:00:03]} 46. Kg6 {[%emt 0:00:02]} Ke8 {[%emt 0:00:04]} 47. Ra8+ {[%emt 0:00:34]} Rc8 {[%emt 0:00:02]} 48. Rxc8+ {[%emt 0:00:02] Weighted Error Value: White=0.05 (flawless) /Black=0.25 (precise)} 1-0

[Event "MPL-4 Indian Chess Tour 2022"]
[Site "Chess24"]
[Date "2022.09.27"]
[Round "10.8"]
[White "Sethuraman, S.P."]
[Black "Mitrabha, Guha"]
[Result "1-0"]
[ECO "A70"]
[WhiteElo "2638"]
[BlackElo "2471"]
[Annotator "TA"]
[PlyCount "73"]
[EventDate "2022.09.29"]
[EventType "tourn (rapid)"]
[EventCountry "NET"]
[SourceTitle "playchess.com"]
[Source "ChessBase"]
[SourceQuality "1"]
[WhiteTeam "India"]
[BlackTeam "India"]
[WhiteTeamCountry "IND"]
[BlackTeamCountry "IND"]
[TimeControl "900+10"]

{[%evp 12,73,75,48,97,29,46,43,28,-10,24,31,109,0,0,-19,0,0,0,0,0,0,0,0,0,0,0,0,0,0,-7,-88,-33,-277,-188,-178,-107,-109,-13,-134,-107,-115,-114,-257,-147,-359,-153,-151,-156,-352,0,0,1171,1130,29972,29973,29978,29979,29979,29972,29992,29993,29993,29994]} 1. d4 {[%emt 0:00:00]} Nf6 {[%emt 0:00:00]} 2. c4 {[%emt 0:00:02]} c5 {[%emt 0:00:03]} 3. d5 {[%emt 0:00:01]} e6 {[%emt 0:00:03]} 4. Nc3 {[%emt 0:00:02]} d6 {[%emt 0:00:05]} 5. e4 {[%emt 0:00:12]} g6 {[%emt 0:00:05]} 6. Nf3 {[%emt 0:00:34]} exd5 {[%emt 0:00:03]} 7. cxd5 {[%emt 0:00:05]} Bg4 {[%emt 0:00:02] 7...a6 is becoming the main line. A70: Modern Benoni: 6 e4 g6 7 Nf3.} (7... a6 $14) 8. Qb3 {[%emt 0:00:29]} (8. Qa4+ $16 Bd7 9. Qb3) 8... Bxf3 $11 {[%emt 0:00:02] [#]} 9. gxf3 $146 {[%emt 0:00:08]} ({Predecessor:} 9. Qxb7 Nbd7 10. gxf3 Bg7 11. Qa6 O-O 12. Be2 Nh5 13. f4 Qh4 14. Qxd6 Ndf6 15. e5 {½-½ (57) Drygalov,S (2530)-Harshavardhan,G (2367) Chess.com INT 2022}) 9... Nbd7 {[%emt 0:00:01] White is slightly better.} 10. Be2 {[%emt 0:00:20]} Bg7 {[%emt 0:00:03]} 11. Bf4 {[%emt 0:00:22]} (11. Qxb7 O-O $16) 11... Ne5 {[%emt 0:00:45]} (11... Nb6 $14) 12. Qa4+ {[%emt 0:02:16]} (12. Qxb7 Nfd7 $14) (12. Bxe5 $16 {Black must now prevent Qa4+.} dxe5 13. Qb5+ (13. Qxb7 O-O $16) 13... Qd7 14. Qxc5) 12... Nfd7 {[%emt 0:00:07]} 13. Be3 {[%emt 0:01:44] And now f4 would win.} a6 {[%emt 0:00:23]} 14. f4 {[%emt 0:01:04]} b5 {[%emt 0:00:04]} 15. Qc2 {[%emt 0:00:16]} Nc4 {[%emt 0:00:01]} 16. Bxc4 {[%emt 0:00:03]} bxc4 {[%emt 0:00:01]} 17. h4 {[%emt 0:00:02]} O-O {[%emt 0:00:57]} 18. h5 {[%emt 0:00:04]} Rb8 {[%emt 0:00:14][%cal Ba8b8,Bb8b4,Bb4e4][%mdl 32]} 19. Kf1 {[%emt 0:03:04]} Nf6 {[%emt 0:00:40]} 20. hxg6 {[%emt 0:00:16]} fxg6 {[%emt 0:00:03]} 21. Qe2 {[%emt 0:00:41]} (21. Re1 $11 {keeps the balance.}) 21... Qe7 {[%emt 0:00:22]} ({Black should play} 21... Nh5 $17 22. f5 Qe7) 22. Qxc4 $2 {[%emt 0:01:09]} (22. e5 $1 $15 Nh5 23. exd6) 22... Rb4 {[%emt 0:00:08]} 23. Qd3 {[%emt 0:01:08]} Nxe4 {[%emt 0:00:28]} (23... Nh5 $19 24. a3 Rxb2) 24. Re1 $17 {[%emt 0:00:02]} (24. a3 $2 Nxf2 $1 {[%mdl 512]} 25. Bxf2 Rbxf4 $19) 24... Re8 {[%emt 0:00:52]} (24... Nxc3 $17 25. bxc3 c4) 25. Re2 {[%emt 0:00:33]} (25. Bc1 $11 {was the only way to keep the balance.}) 25... Nxc3 {[%emt 0:00:17]} 26. bxc3 {[%emt 0:00:02]} Re4 {[%emt 0:00:09]} 27. Qxa6 {[%emt 0:00:45]} (27. c4 $17) 27... Bxc3 {[%emt 0:00:09]} (27... g5 $19 28. fxg5 Qf7 29. Qxd6 Rxe3 30. Rxe3 Rxe3) 28. f5 {[%emt 0:00:01]} (28. Rh3 $17 {was necessary.}) 28... Bd4 {[%emt 0:01:36]} ({Don't go for} 28... gxf5 $2 29. Qd3 Bf6 30. Rc2 $19) (28... Qf7 $19 {has better winning chances.} 29. Qd3 (29. Qxd6 $2 Qxf5 30. Qxc5 Qf3 $19) 29... Bg7 30. fxg6 hxg6) 29. Rh3 {[%emt 0:00:53]} gxf5 {[%emt 0:06:20]} ({And not} 29... Bxe3 30. Rexe3 Rf8 31. Rxe4 Qxe4 32. Qxd6 Qxf5 33. Qe6+ Qxe6 34. dxe6 $15) 30. Rg3+ $2 {[%emt 0:01:32] [#]} (30. Bxd4 $17 Rxe2 31. Rg3+ Kf8 32. Be3) 30... Kf8 $2 {[%emt 0:00:04]} (30... Kh8 $1 $19 {aiming for ...f4.} 31. Bxd4+ cxd4 32. Rxe4 Qxe4) 31. Bg5 $11 {[%emt 0:01:14]} Qe5 {[%emt 0:02:20][%mdl 8192] [#]} (31... Qd7 $11 32. Rxe4 fxe4) 32. Rxe4 $1 $18 {[%emt 0:00:50][%mdl 64] Deflection} ({Inferior is} 32. Bh6+ Kf7 33. Rg7+ Qxg7 34. Bxg7 Rxe2 35. Bxd4 cxd4 $11) 32... Qxe4 {[%emt 0:00:02]} 33. Qxd6+ {[%emt 0:00:03] White mates.} Re7 {[%emt 0:02:06]} 34. Bxe7+ {[%emt 0:00:14]} Qxe7 {[%emt 0:00:01]} 35. Qh6+ {[%emt 0:00:20]} Ke8 {[%emt 0:00:10]} 36. Rg8+ {[%emt 0:00:02]} Kf7 {[%emt 0:00:04]} 37. Qxh7+ {[%emt 0:00:04] Never resign too early!  Weighted Error Value: White=0.51/Black=0.66} 1-0

[Event "MPL-4 Indian Chess Tour 2022"]
[Site "Chess24"]
[Date "2022.09.27"]
[Round "11.1"]
[White "Mitrabha, Guha"]
[Black "Raja Harshit"]
[Result "1/2-1/2"]
[ECO "E49"]
[WhiteElo "2471"]
[BlackElo "2459"]
[Annotator "TA"]
[PlyCount "143"]
[EventDate "2022.09.29"]
[EventType "tourn (rapid)"]
[EventCountry "NET"]
[SourceTitle "playchess.com"]
[Source "ChessBase"]
[SourceQuality "1"]
[WhiteTeam "India"]
[BlackTeam "India"]
[WhiteTeamCountry "IND"]
[BlackTeamCountry "IND"]
[TimeControl "900+10"]

{[%evp 19,143,-15,-15,-6,-4,-9,0,0,0,-29,-7,-35,0,0,0,0,0,0,0,0,0,1,0,-116,-22,-64,10,43,48,31,57,5,0,3,1,0,10,0,0,0,0,-7,0,0,0,0,0,0,0,0,8,8,82,87,87,85,87,0,0,0,0,0,0,0,5,0,6,0,0,0,6,0,0,0,0,0,0,0,0,0,0,0,0,0,0,0,0,0,0,0,0,0,0,0,0,0,0,-53,0,0,0,0,0,0,0,-2,-2,-2,-2,-2,-2,-2,-2,-2,-2,-2,-2,-2,0,0,0,0,0,0,0,0]} 1. d4 {[%emt 0:00:00] Ftacnik,L} Nf6 {[%emt 0:00:00]} 2. c4 {[%emt 0:00:02]} e6 {[%emt 0:00:01]} 3. Nc3 {[%emt 0:00:02]} Bb4 {[%emt 0:00:01]} 4. e3 {[%emt 0:00:02]} O-O {[%emt 0:00:01]} 5. Bd3 {[%emt 0:00:02]} d5 {[%emt 0:00:01]} 6. Nge2 {[%emt 0:00:01]} dxc4 {[%emt 0:00:05]} 7. Bxc4 {[%emt 0:00:02]} c5 {[%emt 0:00:01]} 8. a3 {[%emt 0:00:05]} Bxc3+ {[%emt 0:00:01]} 9. bxc3 {[%emt 0:00:01]} Qc7 {[%emt 0:00:02]} 10. Bd3 {[%emt 0:00:07]} Nc6 {[%emt 0:00:05] 10...b6 is the modern continuation.} 11. O-O {[%emt 0:00:05] E49: Nimzo-Indian: Rubinstein: 5 Bd3 d5 6 a3 Bxc3+ 7 bxc3.} e5 {[%emt 0:00:02]} (11... Ng4 12. Nf4 Nf6 13. Nh5 $14 (13. dxc5 Ne5 $11)) (11... c4 12. Bxc4 e5 13. Bd3 $16) 12. e4 {[%emt 0:00:03]} cxd4 {[%emt 0:00:03]} 13. cxd4 {[%emt 0:00:01]} exd4 {[%emt 0:00:01]} 14. h3 {[%emt 0:00:56]} Re8 {[%emt 0:00:30]} 15. Ng3 {[%emt 0:00:10]} Ne5 {[%emt 0:00:12] [#] ...Qc3 is the strong threat.} 16. Bb1 $146 {[%emt 0:00:52]} ({Of course not} 16. Bf4 Bd7 $15) ({Predecessor:} 16. Bf4 Bd7 17. Bxe5 Qxe5 18. f4 Qa5 19. e5 Nd5 20. Qh5 h6 21. Ne4 Re7 22. Rf3 {0-1 (34) Lein,A (2485)-Hjartarson,J (2505) Reykjavik 1990 CBM 018 [Ftacnik,L]}) 16... Qc3 {[%emt 0:01:36]} 17. Ra2 {[%emt 0:00:13]} Be6 {[%emt 0:00:02]} 18. Rd2 {[%emt 0:01:07]} Bb3 {[%emt 0:00:51]} 19. Qe1 {[%emt 0:00:04]} Bc4 {[%emt 0:00:47]} 20. Bb2 {[%emt 0:01:58]} Qa5 {[%emt 0:00:31]} 21. Rxd4 {[%emt 0:00:05] [#]} (21. f4 $1 $11 Nc6 22. Rff2) 21... Qb5 {[%emt 0:00:04]} ({Better is} 21... Qb6 $1 $17 {[%cal Rb6b2]} 22. Rd2 Bxf1 23. Qxf1 Qb3) 22. Rxc4 $1 $11 {[%emt 0:00:17]} Qxb2 {[%emt 0:01:37]} (22... Qxc4 $15 23. Qe3 Qe6) 23. Rb4 {[%emt 0:02:59]} Qxa3 {[%emt 0:00:05]} 24. Rxb7 {[%emt 0:00:15]} Nc4 {[%emt 0:00:57]} 25. Qb4 {[%emt 0:00:39]} (25. Rc7 $14 Rec8 26. Rxc8+ Rxc8 27. e5) 25... Qxb4 {[%emt 0:01:12]} 26. Rxb4 {[%emt 0:00:03]} Nd2 {[%emt 0:00:30] Pair of Knights!} 27. Rd1 {[%emt 0:00:03]} Red8 {[%emt 0:01:17][%cal Od2f3] Threatens to win with ...Nf3+!} 28. Rc1 {[%emt 0:00:08]} a5 {[%emt 0:00:34]} 29. Rb7 {[%emt 0:00:14]} Nxb1 {[%emt 0:00:59]} 30. Rcxb1 {[%emt 0:00:06]} a4 {[%emt 0:00:18]} 31. Ra1 {[%emt 0:00:01]} Rd4 {[%emt 0:01:01] Inhibits Rb4.} 32. f3 {[%emt 0:00:04]} g6 {[%emt 0:00:32] Prevents Nf5.} 33. Ne2 {[%emt 0:00:20]} Rc4 {[%emt 0:00:22]} 34. Ra3 {[%emt 0:00:06]} Rc2 {[%emt 0:00:50]} 35. Nf4 {[%emt 0:00:25]} Rd8 {[%emt 0:00:51]} (35... Rd2 $11 {keeps the balance.}) 36. Rxa4 $16 {[%emt 0:00:26]} g5 {[%emt 0:00:08]} 37. e5 {[%emt 0:00:16]} Nd7 {[%emt 0:02:14]} 38. e6 {[%emt 0:04:58]} (38. Rd4 $16 gxf4 39. Rdxd7 (39. Rbxd7 Rxd7 40. Rxd7 Re2 $16) 39... Rxd7 40. Rxd7) 38... Nc5 $36 {[%emt 0:00:03][%mdl 2048] Black is pushing.} 39. e7 {[%emt 0:00:11]} ({Don't play} 39. exf7+ Kf8 40. Rba7 gxf4 41. Rxf4 Ne6 $15) 39... Nxb7 {[%emt 0:01:28]} (39... Re8 $2 {[#]} 40. Nd5 $1 Kg7 41. Rc7 $18) 40. exd8=Q+ {[%emt 0:00:11]} Nxd8 {[%emt 0:00:00][%mdl 4096] Endgame KRN-KRN} 41. Nh5 {[%emt 0:00:01]} Kf8 {[%emt 0:00:22]} 42. Ra8 {[%emt 0:00:49]} Rd2 {[%emt 0:00:28]} 43. Kh2 {[%emt 0:00:03]} Ke7 {[%emt 0:00:25]} 44. Ra7+ {[%emt 0:00:03]} Kf8 {[%emt 0:00:18]} 45. Kg3 {[%emt 0:00:02]} Ne6 {[%emt 0:00:12]} 46. Ra8+ {[%emt 0:00:04]} Ke7 {[%emt 0:00:11]} 47. Rh8 {[%emt 0:00:02]} Nf8 {[%emt 0:00:13]} 48. Rg8 {[%emt 0:00:03]} Ng6 {[%emt 0:00:02]} 49. f4 {[%emt 0:01:58]} h6 {[%emt 0:00:42]} 50. fxg5 {[%emt 0:01:24]} hxg5 {[%emt 0:00:00]} 51. Ra8 {[%emt 0:00:16]} Nh4 {[%emt 0:00:08][%csl Gh4][%cal Rd2g2]} 52. Ra7+ {[%emt 0:00:04]} Ke6 {[%emt 0:00:11][%csl Gh4][%cal Rd2g2]} 53. Ra6+ {[%emt 0:00:03]} Ke7 {[%emt 0:00:23][%csl Gh4][%cal Rd2g2]} 54. Ra7+ {[%emt 0:00:04]} Kd8 {[%emt 0:00:06][%csl Gh4][%cal Rd2g2]} 55. Nf4 {[%emt 0:00:59]} Ke8 {[%emt 0:00:20]} 56. Ra5 {[%emt 0:00:34]} f6 {[%emt 0:00:15]} 57. Kg4 {[%emt 0:00:13]} Nxg2 {[%emt 0:00:14] aiming for ...Rd4.} 58. Nh5 {[%emt 0:00:12]} (58. Ra8+ $11 Kd7 59. Ra7+ Kd6 60. Ra6+ Ke7 61. Ra7+ Kd8 62. Ne6+ Ke8 63. Ng7+ Kd8 64. Ne6+ Ke8 65. Ng7+ Kd8 66. Ne6+) 58... Ne3+ {[%emt 0:00:08]} (58... Kf7 $15 59. Nxf6 Kxf6 60. Ra6+ Ke5) 59. Kf3 {[%emt 0:00:02] The position is equal.} Nc4 {[%emt 0:00:05]} 60. Nxf6+ {[%emt 0:00:19]} Kf7 {[%emt 0:00:01]} 61. Rc5 {[%emt 0:00:00]} Rd3+ {[%emt 0:00:22]} 62. Ke2 {[%emt 0:00:12]} Re3+ {[%emt 0:00:06]} 63. Kf2 {[%emt 0:00:03]} Kxf6 {[%emt 0:00:01]} 64. Rxc4 {[%emt 0:00:02]} Rxh3 {[%emt 0:00:02] KR-KR} 65. Kg2 $1 {[%emt 0:00:01]} Ra3 {[%emt 0:00:01]} 66. Rb4 {[%emt 0:00:01]} Kg6 {[%emt 0:00:01]} 67. Rb8 {[%emt 0:00:02]} Kh5 {[%emt 0:00:01]} 68. Rb4 {[%emt 0:00:02]} g4 {[%emt 0:00:03]} 69. Rb8 {[%emt 0:00:02]} Rh3 {[%emt 0:00:05]} 70. Rh8+ {[%emt 0:00:01]} Kg5 {[%emt 0:00:00]} 71. Rxh3 {[%emt 0:00:00]} gxh3+ {[%emt 0:00:00]} 72. Kxh3 {[%emt 0:00:01] Weighted Error Value: White=0.11 (very precise) /Black=0.11 (very precise)} 1/2-1/2

[Event "MPL-4 Indian Chess Tour 2022"]
[Site "Chess24"]
[Date "2022.09.27"]
[Round "11.2"]
[White "Vaibhav, Suri"]
[Black "Sethuraman, S.P."]
[Result "1-0"]
[ECO "B55"]
[WhiteElo "2600"]
[BlackElo "2638"]
[Annotator "TA"]
[PlyCount "85"]
[EventDate "2022.09.29"]
[EventType "tourn (rapid)"]
[EventCountry "NET"]
[SourceTitle "playchess.com"]
[Source "ChessBase"]
[SourceQuality "1"]
[WhiteTeam "India"]
[BlackTeam "India"]
[WhiteTeamCountry "IND"]
[BlackTeamCountry "IND"]
[TimeControl "900+10"]

{[%evp 13,85,17,3,8,0,0,0,0,0,0,0,0,42,29,41,37,73,46,156,143,158,160,144,162,167,158,134,72,220,221,243,241,241,240,250,217,232,239,261,266,259,254,264,270,252,234,245,244,241,240,257,249,247,247,357,334,458,451,512,450,691,689,670,662,643,629,695,622,795,739,1371,1342,928,847]} 1. e4 {[%emt 0:00:00]} c5 {[%emt 0:00:00]} 2. Nf3 {[%emt 0:00:01]} d6 {[%emt 0:00:02]} 3. d4 {[%emt 0:00:01]} cxd4 {[%emt 0:00:02]} 4. Nxd4 {[%emt 0:00:00]} Nf6 {[%emt 0:00:00]} 5. f3 {[%emt 0:00:00]} e5 {[%emt 0:00:52]} 6. Nb3 {[%emt 0:00:01]} Be6 {[%emt 0:01:11]} 7. c4 {[%emt 0:00:02]} Nbd7 {[%emt 0:00:04]} (7... Nxe4 8. fxe4 Qh4+ 9. Kd2 $16) 8. Nc3 {[%emt 0:00:02] B55: Sicilian: 2...d6 3 d4 cxd4 4 Nxd4 Nf6 5 f3.} Rc8 {[%emt 0:00:01]} 9. Be3 {[%emt 0:00:00]} Bxc4 {[%emt 0:00:43]} 10. Bxc4 {[%emt 0:00:02] The position is equal.} Rxc4 {[%emt 0:00:00]} 11. Qd3 {[%emt 0:00:01]} Rc6 {[%emt 0:00:25]} 12. g4 {[%emt 0:00:02][%cal Bg2g4,Bg4g5][%mdl 32]} Be7 {[%emt 0:00:44]} 13. O-O-O {[%emt 0:01:11][%mdl 1024] White has compensation.} O-O {[%emt 0:01:56]} 14. Kb1 {[%emt 0:00:01]} a6 {[%emt 0:01:34]} 15. h4 {[%emt 0:00:27] [#]} (15. g5 $5 {[%cal Rg5f6]}) 15... Qc8 $146 {[%emt 0:02:07]} ({Black should play} 15... Nc5 $14 16. Nxc5 dxc5) ({Predecessor:} 15... Nc5 16. Nxc5 dxc5 17. Qxd8 Rxd8 18. Rxd8+ Bxd8 19. Rd1 Bc7 20. g5 Ne8 21. Rd7 Rd6 {1-0 (38) So,W (2770)-Topalov,V (2761) Leuven 2016}) 16. g5 $16 {[%emt 0:00:07] White is more active.} Rxc3 {[%emt 0:00:04]} 17. Qxc3 {[%emt 0:00:27]} (17. bxc3 Nh5 $16) 17... Qxc3 {[%emt 0:00:01]} 18. bxc3 {[%emt 0:00:01]} Nh5 {[%emt 0:00:02]} 19. Na5 {[%emt 0:00:02] aiming for Nc4.} Rc8 {[%emt 0:01:40] Prevents Nc4.} 20. c4 {[%emt 0:06:18]} (20. Nxb7 Rb8 21. Kc2 Rxb7 $17) (20. Kc2 $142) 20... f6 {[%emt 0:02:20] Black cannot hold the game after this.} (20... Rc7 $16) 21. Rh2 $18 {[%emt 0:00:45]} (21. Nxb7 Rb8 22. gxf6 Rxb7+ 23. Kc2 Nhxf6 $19) (21. gxf6 Nhxf6 22. Rh2 (22. Nxb7 $2 Rb8 $19) 22... b6 $14) 21... Nc5 {[%emt 0:03:23]} 22. Bxc5 {[%emt 0:02:22]} Rxc5 {[%emt 0:00:01]} 23. Nxb7 {[%emt 0:00:07]} Rc6 {[%emt 0:00:02]} 24. Rhd2 {[%emt 0:03:08]} fxg5 {[%emt 0:00:03]} 25. hxg5 {[%emt 0:00:01]} ({Much less strong is} 25. Nxd6 $6 gxh4 26. Nf5 Bg5 $16) 25... Bxg5 {[%emt 0:00:14]} 26. Na5 {[%emt 0:01:28]} ({Worse is} 26. Nxd6 Bxd2 27. Rxd2 Nf4 $15) ({Don't play} 26. Rxd6 $6 Rxc4 27. Nd8 Rc3 28. Rxa6 Rxf3 $18) 26... Rc5 {[%emt 0:01:08] [#]} 27. Rd5 {[%emt 0:00:01]} Nf4 {[%emt 0:00:26]} 28. Rxc5 {[%emt 0:00:04]} dxc5 {[%emt 0:00:00][%mdl 4096] Endgame KRN-KBN} 29. Nb7 {[%emt 0:00:14]} Be7 {[%emt 0:00:04]} 30. Kc2 {[%emt 0:01:24]} h5 {[%emt 0:00:07]} 31. Kd2 {[%emt 0:00:07]} h4 {[%emt 0:00:02]} 32. Ke3 {[%emt 0:00:04]} Kf7 {[%emt 0:00:55]} 33. Nd6+ {[%emt 0:00:12]} Ke6 {[%emt 0:00:05]} (33... Kg6 $142 34. Ne8 a5) 34. Nf5 {[%emt 0:00:01]} Bf8 {[%emt 0:00:16]} 35. Nxh4 {[%emt 0:00:12] White is clearly winning.} g6 {[%emt 0:00:03]} 36. Kf2 {[%emt 0:00:29]} Kf7 {[%emt 0:00:15]} (36... Be7 $142 37. Ng2 g5) 37. Ng2 {[%emt 0:00:17]} Ne6 {[%emt 0:00:02]} 38. Rd7+ {[%emt 0:00:03]} Ke8 {[%emt 0:00:03]} 39. Ra7 {[%emt 0:00:01]} Bd6 {[%emt 0:00:15]} 40. Ne3 {[%emt 0:00:11]} Nf4 {[%emt 0:00:14]} 41. Rxa6 {[%emt 0:00:21]} Kd7 {[%emt 0:00:03]} 42. a4 {[%emt 0:00:10]} Nd3+ {[%emt 0:00:18]} 43. Kg3 {[%emt 0:00:02] Weighted Error Value: White=0.04 (flawless) /Black=0.42} 1-0